bitfinex/quotes_BTCUSD_20251213
["timestamp","ask_amount","ask_price","bid_price","bid_amount"]
[1765664297655,0.00011576,90201.0,90200.0,0.32654974]
[1765664301597,0.00011576,90201.0,90200.0,0.21574974]
[1765664306323,0.00011576,90201.0,90200.0,0.32654974]
[1765664318324,0.00011576,90201.0,90200.0,0.21574974]
[1765664319926,0.00011576,90201.0,90200.0,0.32654974]
[1765664320966,0.00011576,90201.0,90200.0,0.19826974]
[1765664321165,0.00011576,90201.0,90200.0,0.14780974]
[1765664321366,0.00011576,90201.0,90200.0,0.03730212]
[1765664321584,0.00011576,90201.0,90200.0,0.07690333]
[1765664321997,0.00011576,90201.0,90200.0,0.07490333]
[1765664322200,0.00011576,90201.0,90200.0,0.07590333]
[1765664322402,0.00011576,90201.0,90200.0,0.11907057]
[1765664323188,0.00011576,90201.0,90200.0,0.07946936]
[1765664324689,0.00011576,90201.0,90200.0,0.30119885]
[1765664326185,0.00011576,90201.0,90200.0,0.07946936]
[1765664344234,0.03953863,90201.0,90200.0,0.07946936]
[1765664344425,0.15023863,90201.0,90200.0,0.07946936]
[1765664344572,0.03953863,90201.0,90200.0,0.001]
[1765664345391,0.33023863,90201.0,90200.0,0.001]
[1765664345816,0.38563362,90201.0,90200.0,0.001]
[1765664346028,0.44093863,90201.0,90200.0,0.001]
[1765664346237,0.01108733,90193.0,90190.0,0.0110877]
[1765664346442,0.01108733,90193.0,90191.0,0.03115877]
[1765664348913,0.1107,90194.0,90191.0,0.04224635]
[1765664349116,0.02196708,90195.0,90191.0,0.04224635]
[1765664349331,0.02196708,90195.0,90192.0,0.01108745]
[1765664352530,0.01108721,90194.0,90191.0,0.04224635]
[1765664352727,0.01108721,90194.0,90192.0,0.0599403]
[1765664354851,0.02196708,90195.0,90192.0,0.07102775]
[1765664355591,0.0496848,90195.0,90192.0,0.07102775]
[1765664365503,0.03859772,90195.0,90192.0,0.29277464]
[1765664369629,0.03859772,90195.0,90194.0,0.22174424]
[1765664369784,0.01088,90195.0,90194.0,0.30974292]
[1765664370739,0.01088,90195.0,90194.0,0.08799868]
[1765664378898,0.23262178,90195.0,90194.0,0.08799868]
[1765664379099,0.01088,90195.0,90194.0,0.08799868]
[1765664385820,0.03859772,90195.0,90194.0,0.08799868]
[1765664386879,0.01088,90195.0,90194.0,0.08799868]
[1765664387504,0.01088,90195.0,90192.0,0.01108745]
[1765664387730,0.02771803,90194.0,90192.0,0.01108745]
[1765664388555,0.02771803,90194.0,90192.0,0.23283422]
[1765664396473,0.01088,90195.0,90192.0,0.23283422]
[1765664396691,0.03859772,90195.0,90192.0,0.23283422]
[1765664397280,0.03859772,90195.0,90193.0,0.22174494]
[1765664397482,0.03859772,90195.0,90194.0,0.0787827]
[1765664397817,0.01088,90195.0,90194.0,0.0787827]
[1765664401702,0.01088,90195.0,90192.0,0.01108745]
[1765664401873,0.02771803,90194.0,90192.0,0.23283469]
[1765664402499,0.01748,90200.0,90199.0,0.22173194]
[1765664402784,0.01748,90200.0,90197.0,0.01108684]
[1765664402950,0.02771649,90199.0,90198.0,0.05800058]
[1765664403398,0.01748,90200.0,90198.0,0.05800058]
[1765664403563,0.02856647,90200.0,90198.0,0.05800058]
[1765664403766,0.2907,90199.0,90198.0,0.05800058]
[1765664403948,0.30178659,90199.0,90196.0,0.01108696]
[1765664404144,0.31779659,90199.0,90196.0,0.01108696]
[1765664404351,0.01088,90197.0,90196.0,0.01108696]
[1765664404587,0.01088,90197.0,90195.0,0.01108708]
[1765664405472,0.02196684,90197.0,90196.0,0.05521452]
[1765664406445,0.01088,90197.0,90196.0,0.05521452]
[1765664417378,0.01088,90197.0,90194.0,0.01108721]
[1765664417802,0.01088,90197.0,90195.0,0.22174178]
[1765664418002,0.01088,90197.0,90194.0,0.01108721]
[1765664419099,0.01088,90197.0,90194.0,0.23282919]
[1765664419502,0.02856647,90200.0,90197.0,0.01108684]
[1765664419704,0.02856647,90200.0,90198.0,0.03427895]
[1765664420332,0.01748,90200.0,90198.0,0.03427895]
[1765664420547,0.01748,90200.0,90197.0,0.02340684]
[1765664421530,0.01748,90200.0,90198.0,0.22173195]
[1765664422575,0.01748,90200.0,90198.0,0.24507195]
[1765664423003,0.01748,90200.0,90198.0,0.22173195]
[1765664425898,0.01748,90200.0,90199.0,0.05005]
[1765664426098,0.01748,90200.0,90199.0,0.120959]
[1765664426323,0.01748,90200.0,90199.0,0.105949]
[1765664428218,0.29242863,90201.0,90199.0,0.105949]
[1765664431162,0.29342863,90201.0,90199.0,0.105949]
[1765664432099,0.29342863,90201.0,90199.0,0.3276791]
[1765664432310,0.29342863,90201.0,90200.0,0.08640733]
[1765664434175,0.29242863,90201.0,90200.0,0.08640733]
[1765664434334,0.29342863,90201.0,90200.0,0.08640733]
[1765664436075,0.29342863,90201.0,90200.0,0.30813682]
[1765664436293,0.29342863,90201.0,90200.0,0.08640733]
[1765664453899,0.29342863,90201.0,90200.0,0.30813682]
[1765664454853,0.29342863,90201.0,90200.0,0.08640733]
[1765664460652,0.30430863,90201.0,90200.0,0.08640733]
[1765664463520,0.29342863,90201.0,90200.0,0.08640733]
[1765664465295,0.29242863,90201.0,90200.0,0.08640733]
[1765664476940,0.00172863,90201.0,90200.0,0.08640733]
[1765664477767,0.00172863,90201.0,90200.0,0.11971137]
[1765664483347,0.00011576,90201.0,90200.0,0.15893137]
[1765664484543,0.00011576,90201.0,90200.0,0.15993137]
[1765664484716,0.00011576,90201.0,90200.0,0.16093137]
[1765664485520,0.00011576,90201.0,90200.0,0.27173137]
[1765664486315,0.00011576,90201.0,90200.0,0.31154484]
[1765664487537,0.00011576,90201.0,90200.0,0.27173137]
[1765664488117,0.00011576,90201.0,90200.0,0.33115224]
[1765664488322,0.00011576,90201.0,90200.0,0.3314195]
[1765664489317,0.00011576,90201.0,90200.0,0.27173137]
[1765664489871,0.00011576,90201.0,90200.0,0.3314195]
[1765664490627,0.00011576,90201.0,90200.0,0.27173137]
[1765664492002,0.00011576,90201.0,90200.0,0.12171137]
[1765664492227,0.00011576,90201.0,90200.0,0.16148713]
[1765664492792,0.00011576,90201.0,90200.0,0.12171137]
[1765664492793,0.01563576,90201.0,90200.0,0.12171137]
[1765664492996,0.01563576,90201.0,90200.0,0.03530404]
[1765664492997,0.03899863,90201.0,90200.0,0.03530404]
[1765664493221,0.12769436,90201.0,90200.0,0.03530404]
[1765664493382,0.12769436,90201.0,90200.0,0.002]
[1765664493788,0.12769436,90201.0,90200.0,0.001]
[1765664493994,0.12769436,90201.0,90200.0,0.00664793]
[1765664495444,0.12769436,90201.0,90200.0,0.00564793]
[1765664499860,0.12769436,90201.0,90196.0,0.01108696]
[1765664499861,0.01108647,90200.0,90196.0,0.01108696]
[1765664500070,0.01552,90199.0,90196.0,0.01108696]
[1765664500297,0.01552,90197.0,90195.0,0.03330485]
[1765664500506,0.02660684,90197.0,90194.0,0.01108721]
[1765664500655,0.02660684,90197.0,90195.0,0.05165403]
[1765664500856,0.24834536,90197.0,90195.0,0.05165403]
[1765664501325,0.02660684,90197.0,90195.0,0.05165403]
[1765664503898,0.22173932,90196.0,90195.0,0.05165403]
[1765664504090,0.22173932,90196.0,90180.0,0.42211021]
[1765664504091,0.22175407,90190.0,90188.0,0.03977576]
[1765664504308,0.23284177,90190.0,90186.0,0.01108819]
[1765664504535,0.08869573,90187.0,90185.0,0.22176636]
[1765664504750,0.08869573,90187.0,90186.0,0.07948641]
[1765664505840,0.08869573,90187.0,90186.0,0.30125032]
[1765664506062,0.08869573,90187.0,90186.0,0.30225032]
[1765664506278,0.08869573,90187.0,90186.0,0.08048641]
[1765664506492,0.08869573,90187.0,90186.0,0.08148641]
[1765664506705,0.35860718,90187.0,90186.0,0.002]
[1765664507469,0.35860718,90187.0,90186.0,0.001]
[1765664508525,0.23286043,90183.0,90180.0,0.05086469]
[1765664508859,0.01108856,90183.0,90180.0,0.05086469]
[1765664509197,0.01108856,90183.0,90181.0,0.06206993]
[1765664509406,0.23285509,90185.0,90181.0,0.07315874]
[1765664509827,0.03283844,90184.0,90181.0,0.06206993]
[1765664511447,0.03283844,90184.0,90181.0,0.06306993]
[1765664511647,0.03283844,90184.0,90182.0,0.06240811]
[1765664513679,0.03283844,90184.0,90182.0,0.06340811]
[1765664515050,0.01552,90183.0,90182.0,0.06340811]
[1765664515251,0.03727,90183.0,90182.0,0.001]
[1765664516160,0.01108893,90180.0,90177.0,0.0110893]
[1765664516807,0.24373242,90182.0,90178.0,0.01108917]
[1765664518007,0.01108881,90181.0,90178.0,0.01108917]
[1765664518236,0.01108881,90181.0,90178.0,0.01208917]
[1765664518981,0.01108881,90181.0,90178.0,0.01308917]
[1765664519182,0.01108881,90181.0,90178.0,0.01208917]
[1765664519591,0.01108881,90181.0,90178.0,0.01308917]
[1765664519949,0.01108881,90181.0,90179.0,0.05131358]
[1765664520147,0.03677,90180.0,90179.0,0.05131358]
[1765664520475,0.03677,90180.0,90178.0,0.002]
[1765664520476,0.22178112,90179.0,90178.0,0.002]
[1765664520797,0.22178112,90179.0,90178.0,0.001]
[1765664521005,0.01109004,90171.0,90168.0,0.03977576]
[1765664521211,0.01109004,90171.0,90169.0,0.03886126]
[1765664521628,0.02196979,90173.0,90169.0,0.27175483]
[1765664522078,0.01088,90173.0,90170.0,0.01109016]
[1765664522286,0.01099572,90173.0,90170.0,0.01109016]
[1765664522487,0.01099572,90173.0,90170.0,0.2328912]
[1765664522701,0.00011572,90173.0,90172.0,0.22179834]
[1765664523017,0.00011572,90173.0,90172.0,0.37236834]
[1765664523353,0.00011572,90173.0,90172.0,0.38345727]
[1765664524271,0.00011572,90173.0,90172.0,0.38545727]
[1765664524801,0.00011572,90173.0,90172.0,0.38745727]
[1765664524979,0.00011572,90173.0,90172.0,0.49728586]
[1765664525764,0.00011572,90173.0,90172.0,0.55697399]
[1765664527289,0.00011572,90173.0,90172.0,0.49728586]
[1765664528094,0.00011572,90173.0,90172.0,0.55696913]
[1765664528310,0.00011572,90173.0,90172.0,0.49728586]
[1765664535375,0.00011572,90173.0,90172.0,0.38648586]
[1765664535691,0.00011572,90173.0,90172.0,0.36309586]
[1765664535882,0.00011572,90173.0,90172.0,0.38648586]
[1765664537105,0.2369316,90173.0,90172.0,0.16475479]
[1765664537285,0.2586816,90173.0,90172.0,0.004]
[1765664538054,0.22181064,90167.0,90166.0,0.02339]
[1765664538919,0.22181802,90164.0,90162.0,0.04007648]
[1765664539503,0.01109077,90165.0,90162.0,0.00023921]
[1765664539699,0.01109077,90165.0,90163.0,0.03995088]
[1765664541672,0.01109077,90165.0,90163.0,0.04095088]
[1765664542193,0.08869573,90164.0,90163.0,0.04095088]
[1765664543339,0.08869573,90164.0,90163.0,0.03995088]
[1765664543907,0.08869573,90164.0,90163.0,0.04095088]
[1765664544100,0.08869573,90164.0,90163.0,0.26277136]
[1765664545605,0.08869573,90164.0,90163.0,0.04095088]
[1765664564799,0.08869573,90164.0,90163.0,0.05261088]
[1765664566492,0.09957573,90164.0,90163.0,0.04095088]
[1765664570205,0.08869573,90164.0,90163.0,0.04095088]
[1765664570410,0.08869573,90164.0,90163.0,0.06870088]
[1765664570609,0.08869573,90164.0,90163.0,0.05261088]
[1765664570885,0.08869573,90164.0,90163.0,0.27443136]
[1765664573119,0.08869573,90164.0,90163.0,0.05261088]
[1765664573325,0.08869573,90164.0,90163.0,0.04095088]
[1765664573326,0.34969662,90164.0,90163.0,0.04095088]
[1765664573534,0.34969662,90164.0,90163.0,0.001]
[1765664581145,0.08869573,90164.0,90163.0,0.01725]
[1765664581361,0.08869573,90164.0,90163.0,0.04065]
[1765664581943,0.31051375,90164.0,90163.0,0.04065]
[1765664582148,0.08869573,90164.0,90163.0,0.08365014]
[1765664583427,0.08869573,90171.0,90170.0,0.22180326]
[1765664583829,0.08869573,90171.0,90170.0,0.01625]
[1765664584032,0.08869573,90171.0,90170.0,0.03965]
[1765664584231,0.08869573,90171.0,90170.0,0.13108942]
[1765664585053,0.08969573,90171.0,90170.0,0.13108942]
[1765664588299,0.31149653,90171.0,90170.0,0.10768942]
[1765664590105,0.08969573,90171.0,90170.0,0.10768942]
[1765664591290,0.08969573,90171.0,90170.0,0.09143942]
[1765664591533,0.10078577,90171.0,90168.0,0.0110904]
[1765664591953,0.01109016,90170.0,90166.0,0.23290358]
[1765664592640,0.10078577,90171.0,90167.0,0.01109053]
[1765664593044,0.01109016,90170.0,90167.0,0.01109053]
[1765664596152,0.09978577,90171.0,90169.0,0.0116]
[1765664596356,0.09978577,90171.0,90170.0,0.05766122]
[1765664597358,0.10078577,90171.0,90170.0,0.05766122]
[1765664597567,0.09978577,90171.0,90170.0,0.05766122]
[1765664597782,0.10078577,90171.0,90170.0,0.05766122]
[1765664600459,0.08969573,90171.0,90170.0,0.05766122]
[1765664600593,0.08969573,90171.0,90170.0,0.31911448]
[1765664605556,0.08869573,90171.0,90170.0,0.31911448]
[1765664609475,0.08869573,90171.0,90170.0,0.29571448]
[1765664609888,0.08869573,90171.0,90170.0,0.31849448]
[1765664611626,0.08869573,90171.0,90170.0,0.31949448]
[1765664612026,0.08869573,90171.0,90170.0,0.32049448]
[1765664617709,0.00011572,90173.0,90172.0,0.22179834]
[1765664617907,0.00011572,90173.0,90172.0,0.36029834]
[1765664618109,0.00011572,90173.0,90172.0,0.38307834]
[1765664618938,0.00011572,90173.0,90172.0,0.38407834]
[1765664621929,0.00011572,90173.0,90172.0,0.27327834]
[1765664622051,0.00011572,90173.0,90172.0,0.38378596]
[1765664623266,0.00011572,90173.0,90172.0,0.42366031]
[1765664623493,0.00011572,90173.0,90172.0,0.45697197]
[1765664626413,0.00011572,90173.0,90172.0,0.43419197]
[1765664630775,0.00011572,90173.0,90172.0,0.45697197]
[1765664633172,0.00011572,90173.0,90172.0,0.43419197]
[1765664633376,0.00011572,90173.0,90172.0,0.41849197]
[1765664639412,0.00011572,90173.0,90172.0,0.37861762]
[1765664640569,0.00011572,90173.0,90172.0,0.40280762]
[1765664642509,0.00011572,90173.0,90172.0,0.37861762]
[1765664643846,0.02728572,90173.0,90172.0,0.14481928]
[1765664644050,0.04903572,90173.0,90172.0,0.001]
[1765664645226,0.01108991,90172.0,90169.0,0.05098138]
[1765664645514,0.10498573,90170.0,90169.0,0.0398911]
[1765664645740,0.32678899,90170.0,90169.0,0.03660608]
[1765664645957,0.34853899,90170.0,90168.0,0.0398911]
[1765664646269,0.01109028,90169.0,90167.0,0.0398911]
[1765664648335,0.01109028,90169.0,90166.0,0.05098175]
[1765664648578,0.08869573,90170.0,90168.0,0.23809668]
[1765664648782,0.08869573,90170.0,90169.0,0.07957766]
[1765664655384,0.08869573,90170.0,90165.0,0.08429667]
[1765664655385,0.2218131,90166.0,90165.0,0.0732059]
[1765664655584,0.23290633,90165.0,90162.0,0.00023921]
[1765664655798,0.02716,90163.0,90162.0,0.00023921]
[1765664655937,0.24898048,90163.0,90162.0,0.00023921]
[1765664656136,0.27073048,90163.0,90162.0,0.00023921]
[1765664656841,0.24898048,90163.0,90162.0,0.02976379]
[1765664658166,0.24898048,90163.0,90162.0,0.03076379]
[1765664658863,0.24898048,90163.0,90162.0,0.03176379]
[1765664661237,0.0003466,90166.0,90163.0,0.01109102]
[1765664661469,0.01109053,90167.0,90163.0,0.03528102]
[1765664661647,0.01109053,90167.0,90164.0,0.04848735]
[1765664661862,0.02772663,90166.0,90164.0,0.04848735]
[1765664662299,0.01109053,90167.0,90164.0,0.05957825]
[1765664662634,0.03881686,90167.0,90164.0,0.04848735]
[1765664662864,0.26062952,90167.0,90164.0,0.04848735]
[1765664663077,0.26062952,90167.0,90165.0,0.03866261]
[1765664663078,0.23290319,90167.0,90165.0,0.03866261]
[1765664663272,0.01088,90171.0,90167.0,0.01109053]
[1765664663469,0.00161287,90172.0,90169.0,0.01109028]
[1765664663671,0.00161287,90172.0,90170.0,0.22180326]
[1765664663875,0.00011572,90173.0,90171.0,0.08623577]
[1765664664113,0.00011572,90173.0,90172.0,0.23802834]
[1765664664251,0.00011572,90173.0,90172.0,0.26081834]
[1765664665333,0.00011572,90173.0,90172.0,0.37161834]
[1765664665720,0.00011572,90173.0,90172.0,0.26081834]
[1765664665926,0.00011572,90173.0,90172.0,0.46693202]
[1765664666260,0.00011572,90173.0,90172.0,0.50024416]
[1765664680599,0.00011572,90173.0,90172.0,0.38944416]
[1765664681002,0.00067158,90173.0,90172.0,0.38944416]
[1765664682910,0.00067158,90173.0,90172.0,0.35613202]
[1765664687520,0.00067158,90173.0,90172.0,0.09531368]
[1765664688538,0.00067158,90173.0,90172.0,0.31711202]
[1765664689144,0.00067158,90173.0,90172.0,0.09531368]
[1765664689981,0.00067158,90173.0,90172.0,0.31711202]
[1765664690496,0.00067158,90173.0,90172.0,0.09531368]
[1765664690679,0.00067158,90173.0,90172.0,0.31711202]
[1765664691301,0.00067158,90173.0,90172.0,0.09531368]
[1765664694390,0.00067158,90173.0,90169.0,0.0398911]
[1765664694391,0.23288825,90172.0,90169.0,0.0398911]
[1765664694672,0.2218131,90166.0,90164.0,0.0398911]
[1765664694807,0.2218131,90166.0,90165.0,0.03771666]
[1765664696088,0.23290328,90167.0,90165.0,0.03771666]
[1765664697498,0.03724,90166.0,90165.0,0.03771666]
[1765664697698,0.23290633,90165.0,90162.0,0.00023921]
[1765664697843,0.02636,90163.0,90162.0,0.00023921]
[1765664698262,0.24818048,90163.0,90162.0,0.00023921]
[1765664699530,0.24818048,90163.0,90162.0,0.00123921]
[1765664699736,0.24818048,90163.0,90162.0,0.03086358]
[1765664700132,0.24818048,90163.0,90162.0,0.03186358]
[1765664700476,0.24843739,90163.0,90162.0,0.03186358]
[1765664700678,0.00025691,90163.0,90162.0,0.03186358]
[1765664705566,0.00025691,90163.0,90162.0,0.07125358]
[1765664707407,0.00025691,90163.0,90162.0,0.18205358]
[1765664707608,0.00025691,90163.0,90162.0,0.21536757]
[1765664707814,0.00025691,90163.0,90162.0,0.25523191]
[1765664709325,0.00025691,90163.0,90162.0,0.21536757]
[1765664710626,0.00025691,90163.0,90162.0,0.2552273]
[1765664711194,0.00025691,90163.0,90162.0,0.1444273]
[1765664711372,0.00025691,90163.0,90162.0,0.10456757]
[1765664711577,0.00025691,90163.0,90162.0,0.14442693]
[1765664714086,0.00025691,90163.0,90162.0,0.10456757]
[1765664735307,0.00025691,90163.0,90162.0,0.21536757]
[1765664735713,0.00025691,90163.0,90162.0,0.27507276]
[1765664735918,0.00025691,90163.0,90162.0,0.16427276]
[1765664736296,0.00025691,90163.0,90162.0,0.10456757]
[1765664753911,0.00025691,90163.0,90162.0,0.21536757]
[1765664756654,0.00025691,90163.0,90162.0,0.10456757]
[1765664758994,0.00025691,90163.0,90162.0,0.1644411]
[1765664774548,0.00025691,90163.0,90162.0,0.2752411]
[1765664774751,0.00025691,90163.0,90162.0,0.1644411]
[1765664780535,0.00025691,90163.0,90162.0,0.1408811]
[1765664781946,0.00025691,90163.0,90162.0,0.1641211]
[1765664787378,0.00025691,90163.0,90162.0,0.10424757]
[1765664787689,0.00025691,90163.0,90162.0,0.21504757]
[1765664787843,0.00025691,90163.0,90162.0,0.10424757]
[1765664789923,0.00025691,90163.0,90162.0,0.08100757]
[1765664790259,0.00025691,90163.0,90162.0,0.10542757]
[1765664795747,0.00025691,90163.0,90162.0,0.08100757]
[1765664796527,0.00025691,90163.0,90162.0,0.14090038]
[1765664796731,0.00025691,90163.0,90162.0,0.12507038]
[1765664797164,0.00025691,90163.0,90162.0,0.06517757]
[1765664799783,0.00025691,90163.0,90162.0,0.10534757]
[1765664804608,0.00025691,90163.0,90162.0,0.21614757]
[1765664812301,0.00025691,90163.0,90162.0,0.10534757]
[1765664812539,0.00025691,90163.0,90162.0,0.21614757]
[1765664818830,0.00025691,90163.0,90162.0,0.10534757]
[1765664820590,0.00025691,90163.0,90162.0,0.21614757]
[1765664822663,0.00025691,90163.0,90162.0,0.10534757]
[1765664822900,0.00025691,90163.0,90162.0,0.21614757]
[1765664827380,0.00025691,90163.0,90162.0,0.10534757]
[1765664846666,0.00025691,90163.0,90162.0,0.21614757]
[1765664849015,0.00025691,90163.0,90162.0,0.10534757]
[1765664849899,0.00025691,90163.0,90162.0,0.11681757]
[1765664861836,0.00025691,90163.0,90162.0,0.22761757]
[1765664862544,0.00025691,90163.0,90162.0,0.11681757]
[1765664863501,0.00025691,90163.0,90162.0,0.22761757]
[1765664873946,0.00025691,90163.0,90162.0,0.11681757]
[1765664883047,0.00025691,90163.0,90162.0,0.22761757]
[1765664884195,0.00025691,90163.0,90162.0,0.11681757]
[1765664889603,0.00025691,90163.0,90162.0,0.22761757]
[1765664896474,0.00025691,90163.0,90162.0,0.11681757]
[1765664905940,0.00025691,90163.0,90162.0,0.22761757]
[1765664906935,0.00025691,90163.0,90162.0,0.11681757]
[1765664928619,0.00025691,90163.0,90162.0,0.22761757]
[1765664929340,0.00025691,90163.0,90162.0,0.11681757]
[1765664944758,0.00025691,90163.0,90162.0,0.22761757]
[1765664945788,0.00025691,90163.0,90162.0,0.11681757]
[1765664965922,0.00025691,90163.0,90162.0,0.22761757]
[1765664973606,0.00025691,90163.0,90162.0,0.11681757]
[1765664973817,0.00025691,90163.0,90162.0,0.27763596]
[1765664975034,0.00025691,90163.0,90162.0,0.27663596]
[1765664975463,0.00025691,90163.0,90162.0,0.27863596]
[1765664975741,0.00025691,90163.0,90162.0,0.27763596]
[1765664976187,0.00025691,90163.0,90162.0,0.27963596]
[1765664976386,0.00025691,90163.0,90162.0,0.27563596]
[1765664976615,0.00025691,90163.0,90162.0,0.27963596]
[1765665001824,0.00025691,90163.0,90162.0,0.16883596]
[1765665003196,0.00025691,90163.0,90162.0,0.27963596]
[1765665004423,0.00025691,90163.0,90162.0,0.35924288]
[1765665011092,0.00025691,90163.0,90162.0,0.24844288]
[1765665011293,0.01108684,90197.0,90172.0,0.38261673]
[1765665011537,0.09978245,90198.0,90172.0,0.44925673]
[1765665011538,0.01087,90195.0,90172.0,0.44925673]
[1765665011746,0.02771803,90194.0,90172.0,0.44925673]
[1765665011927,0.02771803,90194.0,90172.0,0.47697414]
[1765665012259,0.03283647,90200.0,90172.0,0.47697414]
[1765665012260,0.08869573,90202.0,90172.0,0.47697414]
[1765665012584,0.08869573,90202.0,90200.0,0.22172949]
[1765665012857,0.08881162,90202.0,90200.0,0.22172949]
[1765665013002,0.09042449,90202.0,90201.0,0.06984604]
[1765665013207,0.01087,90200.0,90199.0,0.01108659]
[1765665013520,0.01108721,90194.0,90191.0,0.03982831]
[1765665013717,0.02635,90192.0,90191.0,0.01108758]
[1765665013917,0.02796287,90192.0,90191.0,0.01108758]
[1765665014123,0.04971287,90192.0,90191.0,0.06983038]
[1765665014375,0.04971287,90192.0,90191.0,0.10313468]
[1765665014913,0.02796287,90192.0,90191.0,0.10313468]
[1765665015115,0.01249287,90192.0,90191.0,0.10313468]
[1765665016909,0.01232509,90192.0,90191.0,0.10313468]
[1765665017246,0.0131919,90192.0,90191.0,0.10313468]
[1765665021026,0.0286619,90192.0,90191.0,0.10313468]
[1765665022225,0.0131919,90192.0,90191.0,0.10313468]
[1765665038359,0.0131919,90192.0,90191.0,0.14296299]
[1765665039601,0.0131919,90192.0,90191.0,0.10313468]
[1765665045165,0.0131919,90192.0,90191.0,0.06983038]
[1765665050463,0.0131919,90192.0,90191.0,0.12957284]
[1765665062200,0.00247968,90192.0,90191.0,0.12957284]
[1765665063967,0.00247968,90192.0,90191.0,0.14044284]
[1765665064171,0.00247968,90192.0,90191.0,0.08070038]
[1765665064574,0.00247968,90192.0,90191.0,0.08270038]
[1765665064784,0.00247968,90192.0,90191.0,0.08370038]
[1765665073442,0.01787968,90192.0,90191.0,0.0726128]
[1765665073843,0.03945968,90192.0,90191.0,0.0726128]
[1765665074055,0.34763968,90192.0,90191.0,0.003]
[1765665074474,0.45833968,90192.0,90191.0,0.003]
[1765665075107,0.45833968,90192.0,90191.0,0.001]
[1765665076079,0.01108893,90180.0,90177.0,0.0110893]
[1765665076278,0.11488573,90178.0,90177.0,0.0110893]
[1765665076681,0.13646573,90178.0,90177.0,0.0110893]
[1765665077206,0.13646573,90178.0,90177.0,0.0120893]
[1765665077554,0.13646573,90178.0,90177.0,0.001]
[1765665078160,0.13646573,90178.0,90177.0,0.22278604]
[1765665078367,0.13646573,90178.0,90177.0,0.29684598]
[1765665079126,0.13646573,90178.0,90177.0,0.29784598]
[1765665081580,0.11533415,90178.0,90177.0,0.29784598]
[1765665089315,0.11533415,90178.0,90177.0,0.07605994]
[1765665089615,0.22603415,90178.0,90177.0,0.07605994]
[1765665089781,0.24761415,90178.0,90177.0,0.07605994]
[1765665090218,0.13691415,90178.0,90177.0,0.07605994]
[1765665091229,0.11533415,90178.0,90177.0,0.07605994]
[1765665100397,0.09993415,90178.0,90177.0,0.07605994]
[1765665102796,0.08914415,90178.0,90177.0,0.07605994]
[1765665104128,0.08914415,90178.0,90177.0,0.11593083]
[1765665121202,0.08914415,90178.0,90177.0,0.07605994]
[1765665121980,0.12660415,90178.0,90177.0,0.07605994]
[1765665123999,0.15432709,90178.0,90177.0,0.07605994]
[1765665125656,0.12660415,90178.0,90177.0,0.07605994]
[1765665125874,0.15432709,90178.0,90177.0,0.07605994]
[1765665126844,0.10502415,90178.0,90177.0,0.07605994]
[1765665131065,0.08914415,90178.0,90177.0,0.07605994]
[1765665136114,0.08914415,90178.0,90177.0,0.11594144]
[1765665146107,0.08914415,90178.0,90177.0,0.07605994]
[1765665158046,0.00044842,90178.0,90177.0,0.12758994]
[1765665158213,0.00044842,90178.0,90177.0,0.23838994]
[1765665158407,0.00044842,90178.0,90177.0,0.27169705]
[1765665160243,0.00044842,90178.0,90177.0,0.32171544]
[1765665160447,0.00044842,90178.0,90177.0,0.21091544]
[1765665163223,0.00044842,90178.0,90177.0,0.32171544]
[1765665175669,0.00044842,90178.0,90177.0,0.21091544]
[1765665175831,0.00044842,90178.0,90177.0,0.22839544]
[1765665177118,0.00044842,90178.0,90177.0,0.33919544]
[1765665187153,0.00044842,90178.0,90177.0,0.22839544]
[1765665187358,0.00044842,90178.0,90177.0,0.33919544]
[1765665217541,0.00044842,90178.0,90177.0,0.41885206]
[1765665220996,0.00044842,90178.0,90177.0,0.33919544]
[1765665221651,0.00044842,90178.0,90177.0,0.41885206]
[1765665238798,0.00044842,90178.0,90177.0,0.30805206]
[1765665238991,0.00044842,90178.0,90177.0,0.41885206]
[1765665241466,0.00044842,90178.0,90177.0,0.30805206]
[1765665241648,0.00044842,90178.0,90177.0,0.33919544]
[1765665242198,0.00011589,90202.0,90200.0,0.05001839]
[1765665242407,0.00011589,90202.0,90201.0,0.14852098]
[1765665242613,0.00011589,90202.0,90201.0,0.25932098]
[1765665242815,0.00011589,90202.0,90201.0,0.29261744]
[1765665245118,0.00011589,90202.0,90201.0,0.29461744]
[1765665245363,0.00011589,90202.0,90201.0,0.29761744]
[1765665247782,0.00083311,90202.0,90201.0,0.29761744]
[1765665249925,0.00083311,90202.0,90201.0,0.18681744]
[1765665250113,0.00083311,90202.0,90201.0,0.29761744]
[1765665258865,0.00083311,90202.0,90201.0,0.58831744]
[1765665259493,0.00083311,90202.0,90201.0,0.47751744]
[1765665259653,0.00083311,90202.0,90201.0,0.58831744]
[1765665267317,0.00083311,90202.0,90201.0,0.66797122]
[1765665267935,0.00083311,90202.0,90201.0,0.58831744]
[1765665272411,0.00016323,90202.0,90201.0,0.58831744]
[1765665275271,0.00016323,90202.0,90201.0,0.47751744]
[1765665275478,0.00016323,90202.0,90201.0,0.58831744]
[1765665282268,3.206e-05,90202.0,90201.0,0.58831744]
[1765665288524,0.0004,90230.0,90229.0,0.22165822]
[1765665288672,0.00051587,90230.0,90229.0,0.24831822]
[1765665288882,0.00051587,90230.0,90229.0,0.3111035]
[1765665289279,0.00051587,90230.0,90229.0,0.27127822]
[1765665289704,0.00151587,90230.0,90229.0,0.27127822]
[1765665290056,0.00151587,90230.0,90229.0,0.30997449]
[1765665290654,0.00051587,90230.0,90229.0,0.30997449]
[1765665292427,0.00051587,90230.0,90229.0,0.34979977]
[1765665293972,0.00135226,90230.0,90229.0,0.34979977]
[1765665296428,0.00135226,90230.0,90229.0,0.30997449]
[1765665298454,0.00135226,90230.0,90229.0,0.34979977]
[1765665299503,0.00135226,90230.0,90229.0,0.30997449]
[1765665302426,0.00135226,90230.0,90229.0,0.34976693]
[1765665303030,0.00135226,90230.0,90229.0,0.30997449]
[1765665303231,0.00135226,90230.0,90229.0,0.42077449]
[1765665303434,0.00135226,90230.0,90229.0,0.4540612]
[1765665306314,0.00135226,90230.0,90229.0,0.51369395]
[1765665306875,0.00135226,90230.0,90229.0,0.3432612]
[1765665310590,0.00135226,90230.0,90229.0,0.4540612]
[1765665311103,0.00135226,90230.0,90229.0,0.3432612]
[1765665311306,0.00135226,90230.0,90229.0,0.4540612]
[1765665313524,0.00135226,90230.0,90229.0,0.50407959]
[1765665314161,0.00135226,90230.0,90229.0,0.58373016]
[1765665314285,0.00135226,90230.0,90229.0,0.58350943]
[1765665314469,0.00135226,90230.0,90229.0,0.58550943]
[1765665314670,0.00135226,90230.0,90229.0,0.50807959]
[1765665314892,0.00135226,90230.0,90229.0,0.50607959]
[1765665315094,0.00135226,90230.0,90229.0,0.58550943]
[1765665315294,0.00135226,90230.0,90229.0,0.58850943]
[1765665316381,0.00135226,90230.0,90229.0,0.50907959]
[1765665317618,0.00135226,90230.0,90229.0,0.79977959]
[1765665320564,2.26e-06,90230.0,90229.0,0.79977959]
[1765665325334,2.26e-06,90230.0,90229.0,0.74437458]
[1765665325729,0.05,90244.0,90243.0,0.38244222]